Workbook

Sheet ka1mo
A1: Parameter | B1: Value | C1: Units | D1: Ka1 | E1: Time | F1: Conc
A2: Dose | B2: 40 | C2: g | D2: =ODE_KA1!D34 -> 68.33935969 | E2: =ODE_KA1!A34 -> 0.1 | F2: =ka1_*(1+NORMINV(RAND(),0,reserr)) -> 65.47024067
A3: Vmax | B3: 10 | C3: g/h | D3: =ODE_KA1!D36 -> 172.2794524 | E3: =ODE_KA1!A36 -> 0.3 | F3: =ka1_*(1+NORMINV(RAND(),0,reserr)) -> 195.7372402
A4: Km | B4: 80 | C4: mg/L | D4: =ODE_KA1!D38 -> 250.9804577 | E4: =ODE_KA1!A38 -> 0.5 | F4: =ka1_*(1+NORMINV(RAND(),0,reserr)) -> 287.4863335
A5: V | B5: 35 | C5: L | D5: =ODE_KA1!D40 -> 311.0913368 | E5: =ODE_KA1!A40 -> 0.7 | F5: =ka1_*(1+NORMINV(RAND(),0,reserr)) -> 327.2633155
A6: Tabs | B6: 1 | C6: h | D6: =ODE_KA1!D43 -> 373.6292903 | E6: =ODE_KA1!A43 -> 1 | F6: =ka1_*(1+NORMINV(RAND(),0,reserr)) -> 382.9074809
A7: Ka | B7: =LN(2)/Tabs -> 0.6931471806 | C7: 1/h | D7: =ODE_KA1!D48 -> 421.8335937 | E7: =ODE_KA1!A48 -> 1.5 | F7: =ka1_*(1+NORMINV(RAND(),0,reserr)) -> 409.8293665
D8: =ODE_KA1!D53 -> 419.9851064 | E8: =ODE_KA1!A53 -> 2 | F8: =ka1_*(1+NORMINV(RAND(),0,reserr)) -> 406.6841974
A9: reserr | B9: 0.05 | D9: =ODE_KA1!D58 -> 384.4127053 | E9: =ODE_KA1!A58 -> 2.5 | F9: =ka1_*(1+NORMINV(RAND(),0,reserr)) -> 368.3987487
D10: =ODE_KA1!D63 -> 326.9146647 | E10: =ODE_KA1!A63 -> 3 | F10: =ka1_*(1+NORMINV(RAND(),0,reserr)) -> 331.7699541
D11: =ODE_KA1!D73 -> 181.7897116 | E11: =ODE_KA1!A73 -> 4 | F11: =ka1_*(1+NORMINV(RAND(),0,reserr)) -> 171.777494
D12: =ODE_KA1!D83 -> 54.55512114 | E12: =ODE_KA1!A83 -> 5 | F12: =ka1_*(1+NORMINV(RAND(),0,reserr)) -> 55.62876257
D13: =ODE_KA1!D93 -> 8.2116224 | E13: =ODE_KA1!A93 -> 6 | F13: =ka1_*(1+NORMINV(RAND(),0,reserr)) -> 8.22820648
D14: =ODE_KA1!D103 -> 2.388264227 | E14: =ODE_KA1!A103 -> 7 | F14: =ka1_*(1+NORMINV(RAND(),0,reserr)) -> 2.195595058

Sheet ka1mo_all
A1: Parameter | B1: Value | C1: Units | D1: Ka1 | E1: Time | F1: Conc | M1: TIME | N1: C:1 | O1: delta
A2: Dose | B2: 30 | C2: g | D2: =ODE_KA1!D33 -> 0 | E2: =ODE_KA1!A33 -> 0 | F2: =Ka1_+NORMINV(RAND(),0,reserr) -> -0.4229539533 | M2: 0 | N2: 0 | O2: =D2-N2 -> 0
A3: Vmax | B3: 10 | C3: g/h | D3: =ODE_KA1!D34 -> 68.33935969 | E3: =ODE_KA1!A34 -> 0.1 | F3: =Ka1_+NORMINV(RAND(),0,reserr) -> 68.69569814 | M3: 0.1 | N3: 50.6994 | O3: =D3-N3 -> 17.63995969
A4: Km | B4: 80 | C4: mg/L | D4: =ODE_KA1!D35 -> 124.1972808 | E4: =ODE_KA1!A35 -> 0.2 | F4: =Ka1_+NORMINV(RAND(),0,reserr) -> 123.06546 | M4: 0.2 | N4: 90.8681 | O4: 33.32918076
A5: V | B5: 35 | C5: L | D5: =ODE_KA1!D36 -> 172.2794524 | E5: =ODE_KA1!A36 -> 0.3 | F5: =Ka1_+NORMINV(RAND(),0,reserr) -> 172.1494696 | M5: 0.3 | N5: 124.449 | O5: 47.83045244
A6: Tabs | B6: 1 | C6: h | D6: =ODE_KA1!D37 -> 214.2395439 | E6: =ODE_KA1!A37 -> 0.4 | F6: =Ka1_+NORMINV(RAND(),0,reserr) -> 214.0766498 | M6: 0.4 | N6: 152.949 | O6: 61.2905439
A7: Ka | B7: =LN(2)/Tabs -> 0.6931471806 | C7: 1/h | D7: =ODE_KA1!D38 -> 250.9804577 | E7: =ODE_KA1!A38 -> 0.5 | F7: =Ka1_+NORMINV(RAND(),0,reserr) -> 251.7310398 | M7: 0.5 | N7: 177.2 | O7: 73.78045766
D8: =ODE_KA1!D39 -> 283.1105653 | E8: =ODE_KA1!A39 -> 0.6 | F8: =Ka1_+NORMINV(RAND(),0,reserr) -> 282.3186917 | M8: 0.6 | N8: 197.757 | O8: 85.3535653
A9: reserr | B9: 1 | D9: =ODE_KA1!D40 -> 311.0913368 | E9: =ODE_KA1!A40 -> 0.7 | F9: =Ka1_+NORMINV(RAND(),0,reserr) -> 312.6199793 | M9: 0.7 | N9: 215.032 | O9: 96.05933678
D10: =ODE_KA1!D41 -> 335.2984278 | E10: =ODE_KA1!A41 -> 0.8 | F10: =Ka1_+NORMINV(RAND(),0,reserr) -> 336.0766718 | M10: 0.8 | N10: 229.354 | O10: 105.9444278
D11: =ODE_KA1!D42 -> 356.0512928 | E11: =ODE_KA1!A42 -> 0.9 | F11: =Ka1_+NORMINV(RAND(),0,reserr) -> 355.0569205 | M11: 0.9 | N11: 240.999 | O11: 115.0522928
D12: =ODE_KA1!D43 -> 373.6292903 | E12: =ODE_KA1!A43 -> 1 | F12: =Ka1_+NORMINV(RAND(),0,reserr) -> 374.361782 | M12: 1 | N12: 250.204 | O12: 123.4252903
D13: =ODE_KA1!D44 -> 388.2812699 | E13: =ODE_KA1!A44 -> 1.1 | F13: =Ka1_+NORMINV(RAND(),0,reserr) -> 388.2697765 | M13: 1.1 | N13: 257.179 | O13: 131.1022699
D14: =ODE_KA1!D45 -> 400.2317176 | E14: =ODE_KA1!A45 -> 1.2 | F14: =Ka1_+NORMINV(RAND(),0,reserr) -> 401.7530175 | M14: 1.2 | N14: 262.112 | O14: 138.1197176
D15: =ODE_KA1!D46 -> 409.6849508 | E15: =ODE_KA1!A46 -> 1.3 | F15: =Ka1_+NORMINV(RAND(),0,reserr) -> 409.9973402 | M15: 1.3 | N15: 265.174 | O15: 144.5109508
D16: =ODE_KA1!D47 -> 416.828141 | E16: =ODE_KA1!A47 -> 1.4 | F16: =Ka1_+NORMINV(RAND(),0,reserr) -> 416.2470554 | M16: 1.4 | N16: 266.521 | O16: 150.307141
D17: =ODE_KA1!D48 -> 421.8335937 | E17: =ODE_KA1!A48 -> 1.5 | F17: =Ka1_+NORMINV(RAND(),0,reserr) -> 421.7529363 | M17: 1.5 | N17: 266.296 | O17: 155.5375937
D18: =ODE_KA1!D49 -> 424.8605368 | E18: =ODE_KA1!A49 -> 1.6 | F18: =Ka1_+NORMINV(RAND(),0,reserr) -> 425.0537361 | M18: 1.6 | N18: 264.633 | O18: 160.2275368
D19: =ODE_KA1!D50 -> 426.0565725 | E19: =ODE_KA1!A50 -> 1.7 | F19: =Ka1_+NORMINV(RAND(),0,reserr) -> 426.5536392 | M19: 1.7 | N19: 261.656 | O19: 164.4005725
D20: =ODE_KA1!D51 -> 425.5588882 | E20: =ODE_KA1!A51 -> 1.8 | F20: =Ka1_+NORMINV(RAND(),0,reserr) -> 424.7936273 | M20: 1.8 | N20: 257.481 | O20: 168.0778882
D21: =ODE_KA1!D52 -> 423.4952904 | E21: =ODE_KA1!A52 -> 1.9 | F21: =Ka1_+NORMINV(RAND(),0,reserr) -> 423.3492512 | M21: 1.9 | N21: 252.218 | O21: 171.2772904
D22: =ODE_KA1!D53 -> 419.9851064 | E22: =ODE_KA1!A53 -> 2 | F22: =Ka1_+NORMINV(RAND(),0,reserr) -> 419.5995994 | M22: 2 | N22: 245.97 | O22: 174.0151064
D23: =ODE_KA1!D54 -> 415.1399826 | E23: =ODE_KA1!A54 -> 2.1 | F23: =Ka1_+NORMINV(RAND(),0,reserr) -> 415.6162891 | M23: 2.1 | N23: 238.837 | O23: 176.3029826
D24: =ODE_KA1!D55 -> 409.0646025 | E24: =ODE_KA1!A55 -> 2.2 | F24: =Ka1_+NORMINV(RAND(),0,reserr) -> 410.4459696 | M24: 2.2 | N24: 230.913 | O24: 178.1516025
D25: =ODE_KA1!D56 -> 401.8573411 | E25: =ODE_KA1!A56 -> 2.3 | F25: =Ka1_+NORMINV(RAND(),0,reserr) -> 401.8308457 | M25: 2.3 | N25: 222.288 | O25: 179.5693411
D26: =ODE_KA1!D57 -> 393.6108671 | E26: =ODE_KA1!A57 -> 2.4 | F26: =Ka1_+NORMINV(RAND(),0,reserr) -> 393.4299053 | M26: 2.4 | N26: 213.051 | O26: 180.5598671
D27: =ODE_KA1!D58 -> 384.4127053 | E27: =ODE_KA1!A58 -> 2.5 | F27: =Ka1_+NORMINV(RAND(),0,reserr) -> 384.171395 | M27: 2.5 | N27: 203.286 | O27: 181.1267053
D28: =ODE_KA1!D59 -> 374.3457656 | E28: =ODE_KA1!A59 -> 2.6 | F28: =Ka1_+NORMINV(RAND(),0,reserr) -> 374.5674059 | M28: 2.6 | N28: 193.078 | O28: 181.2677656
D29: =ODE_KA1!D60 -> 363.488847 | E29: =ODE_KA1!A60 -> 2.7 | F29: =Ka1_+NORMINV(RAND(),0,reserr) -> 365.4618003 | M29: 2.7 | N29: 182.51 | O29: 180.978847
D30: =ODE_KA1!D61 -> 351.9171236 | E30: =ODE_KA1!A61 -> 2.8 | F30: =Ka1_+NORMINV(RAND(),0,reserr) -> 351.9607088 | M30: 2.8 | N30: 171.663 | O30: 180.2541236
D31: =ODE_KA1!D62 -> 339.7026175 | E31: =ODE_KA1!A62 -> 2.9 | F31: =Ka1_+NORMINV(RAND(),0,reserr) -> 340.7768258 | M31: 2.9 | N31: 160.621 | O31: 179.0816175
D32: =ODE_KA1!D63 -> 326.9146647 | E32: =ODE_KA1!A63 -> 3 | F32: =Ka1_+NORMINV(RAND(),0,reserr) -> 328.4137907 | M32: 3 | N32: 149.466 | O32: 177.4486647
D33: =ODE_KA1!D64 -> 313.6203805 | E33: =ODE_KA1!A64 -> 3.1 | F33: =Ka1_+NORMINV(RAND(),0,reserr) -> 311.2587638 | M33: 3.1 | N33: 138.282 | O33: 175.3383805
D34: =ODE_KA1!D65 -> 299.8851282 | E34: =ODE_KA1!A65 -> 3.2 | F34: =Ka1_+NORMINV(RAND(),0,reserr) -> 298.4188283 | M34: 3.2 | N34: 127.153 | O34: 172.7321282
D35: =ODE_KA1!D66 -> 285.7729983 | E35: =ODE_KA1!A66 -> 3.3 | F35: =Ka1_+NORMINV(RAND(),0,reserr) -> 284.7053662 | M35: 3.3 | N35: 116.166 | O35: 169.6069983
D36: =ODE_KA1!D67 -> 271.3473021 | E36: =ODE_KA1!A67 -> 3.4 | F36: =Ka1_+NORMINV(RAND(),0,reserr) -> 270.1568732 | M36: 3.4 | N36: 105.408 | O36: 165.9393021
D37: =ODE_KA1!D68 -> 256.6710845 | E37: =ODE_KA1!A68 -> 3.5 | F37: =Ka1_+NORMINV(RAND(),0,reserr) -> 257.1015449 | M37: 3.5 | N37: 94.9647 | O37: 161.7063845
D38: =ODE_KA1!D69 -> 241.8076606 | E38: =ODE_KA1!A69 -> 3.6 | F38: =Ka1_+NORMINV(RAND(),0,reserr) -> 241.5691032 | M38: 3.6 | N38: 84.9235 | O38: 156.8841606
D39: =ODE_KA1!D70 -> 226.8211772 | E39: =ODE_KA1!A70 -> 3.7 | F39: =Ka1_+NORMINV(RAND(),0,reserr) -> 226.9537365 | M39: 3.7 | N39: 75.3667 | O39: 151.4544772
D40: =ODE_KA1!D71 -> 211.7771978 | E40: =ODE_KA1!A71 -> 3.8 | F40: =Ka1_+NORMINV(RAND(),0,reserr) -> 211.1788639 | M40: 3.8 | N40: 66.3718 | O40: 145.4053978
D41: =ODE_KA1!D72 -> 196.7433063 | E41: =ODE_KA1!A72 -> 3.9 | F41: =Ka1_+NORMINV(RAND(),0,reserr) -> 198.7161216 | M41: 3.9 | N41: 58.0074 | O41: 138.7359063
D42: =ODE_KA1!D73 -> 181.7897116 | E42: =ODE_KA1!A73 -> 4 | F42: =Ka1_+NORMINV(RAND(),0,reserr) -> 182.9979277 | M42: 4 | N42: 50.3293 | O42: 131.4604116
D43: =ODE_KA1!D74 -> 166.9898282 | E43: =ODE_KA1!A74 -> 4.1 | F43: =Ka1_+NORMINV(RAND(),0,reserr) -> 168.7776649 | M43: 4.1 | N43: 43.3772 | O43: 123.6126282
D44: =ODE_KA1!D75 -> 152.4207838 | E44: =ODE_KA1!A75 -> 4.2 | F44: =Ka1_+NORMINV(RAND(),0,reserr) -> 150.7878554 | M44: 4.2 | N44: 37.1713 | O44: 115.2494838
D45: =ODE_KA1!D76 -> 138.1637787 | E45: =ODE_KA1!A76 -> 4.3 | F45: =Ka1_+NORMINV(RAND(),0,reserr) -> 136.9079459 | M45: 4.3 | N45: 31.7104 | O45: 106.4533787
D46: =ODE_KA1!D77 -> 124.3041848 | E46: =ODE_KA1!A77 -> 4.4 | F46: =Ka1_+NORMINV(RAND(),0,reserr) -> 125.0594018 | M46: 4.4 | N46: 26.9719 | O46: 97.33228476
D47: =ODE_KA1!D78 -> 110.9312238 | E47: =ODE_KA1!A78 -> 4.5 | F47: =Ka1_+NORMINV(RAND(),0,reserr) -> 112.3653273 | M47: 4.5 | N47: 22.9139 | O47: 88.01732376
D48: =ODE_KA1!D79 -> 98.13701298 | E48: =ODE_KA1!A79 -> 4.6 | F48: =Ka1_+NORMINV(RAND(),0,reserr) -> 100.9486449 | M48: 4.6 | N48: 19.4793 | O48: 78.65771298
D49: =ODE_KA1!D80 -> 86.01472561 | E49: =ODE_KA1!A80 -> 4.7 | F49: =Ka1_+NORMINV(RAND(),0,reserr) -> 85.44595021 | M49: 4.7 | N49: 16.6008 | O49: 69.41392561
D50: =ODE_KA1!D81 -> 74.6556081 | E50: =ODE_KA1!A81 -> 4.8 | F50: =Ka1_+NORMINV(RAND(),0,reserr) -> 74.36577063 | M50: 4.8 | N50: 14.2067 | O50: 60.4489081
D51: =ODE_KA1!D82 -> 64.14467575 | E51: =ODE_KA1!A82 -> 4.9 | F51: =Ka1_+NORMINV(RAND(),0,reserr) -> 64.78073328 | M51: 4.9 | N51: 12.2256 | O51: 51.91907575
D52: =ODE_KA1!D83 -> 54.55512114 | E52: =ODE_KA1!A83 -> 5 | F52: =Ka1_+NORMINV(RAND(),0,reserr) -> 55.00696436 | M52: 5 | N52: 10.5901 | O52: 43.96502114
D53: =ODE_KA1!D84 -> 45.94184979 | E53: =ODE_KA1!A84 -> 5.1 | F53: =Ka1_+NORMINV(RAND(),0,reserr) -> 46.88504698 | M53: 5.1 | N53: 9.23985 | O53: 36.70199979
D54: =ODE_KA1!D85 -> 38.33506012 | E54: =ODE_KA1!A85 -> 5.2 | F54: =Ka1_+NORMINV(RAND(),0,reserr) -> 39.54132183 | M54: 5.2 | N54: 8.12204 | O54: 30.21302012
D55: =ODE_KA1!D86 -> 31.73523654 | E55: =ODE_KA1!A86 -> 5.3 | F55: =Ka1_+NORMINV(RAND(),0,reserr) -> 31.08913334 | M55: 5.3 | N55: 7.19221 | O55: 24.54302654
D56: =ODE_KA1!D87 -> 26.11104274 | E56: =ODE_KA1!A87 -> 5.4 | F56: =Ka1_+NORMINV(RAND(),0,reserr) -> 27.1157054 | M56: 5.4 | N56: 6.41359 | O56: 19.69745274
D57: =ODE_KA1!D88 -> 21.40114095 | E57: =ODE_KA1!A88 -> 5.5 | F57: =Ka1_+NORMINV(RAND(),0,reserr) -> 21.68027417 | M57: 5.5 | N57: 5.75634 | O57: 15.64480095
D58: =ODE_KA1!D89 -> 17.51995005 | E58: =ODE_KA1!A89 -> 5.6 | F58: =Ka1_+NORMINV(RAND(),0,reserr) -> 18.06844703 | M58: 5.6 | N58: 5.19653 | O58: 12.32342005
D59: =ODE_KA1!D90 -> 14.36619366 | E59: =ODE_KA1!A90 -> 5.7 | F59: =Ka1_+NORMINV(RAND(),0,reserr) -> 15.35828599 | M59: 5.7 | N59: 4.71519 | O59: 9.651003663
D60: =ODE_KA1!D91 -> 11.83234724 | E60: =ODE_KA1!A91 -> 5.8 | F60: =Ka1_+NORMINV(RAND(),0,reserr) -> 10.75564207 | M60: 5.8 | N60: 4.29739 | O60: 7.534957244
D61: =ODE_KA1!D92 -> 9.813103887 | E61: =ODE_KA1!A92 -> 5.9 | F61: =Ka1_+NORMINV(RAND(),0,reserr) -> 9.423967341 | M61: 5.9 | N61: 3.93139 | O61: 5.881713887
D62: =ODE_KA1!D93 -> 8.2116224 | E62: =ODE_KA1!A93 -> 6 | F62: =Ka1_+NORMINV(RAND(),0,reserr) -> 6.93110137 | M62: 6 | N62: 3.60799 | O62: 4.6036324
D63: =ODE_KA1!D94 -> 6.943177747 | E63: =ODE_KA1!A94 -> 6.1 | F63: =Ka1_+NORMINV(RAND(),0,reserr) -> 6.568794297 | M63: 6.1 | N63: 3.31999 | O63: 3.623187747
D64: =ODE_KA1!D95 -> 5.936512353 | E64: =ODE_KA1!A95 -> 6.2 | F64: =Ka1_+NORMINV(RAND(),0,reserr) -> 4.349395357 | M64: 6.2 | N64: 3.0617 | O64: 2.874812353
D65: =ODE_KA1!D96 -> 5.133523166 | E65: =ODE_KA1!A96 -> 6.3 | F65: =Ka1_+NORMINV(RAND(),0,reserr) -> 5.553613467 | M65: 6.3 | N65: 2.82864 | O65: 2.304883166
D66: =ODE_KA1!D97 -> 4.487958465 | E66: =ODE_KA1!A97 -> 6.4 | F66: =Ka1_+NORMINV(RAND(),0,reserr) -> 5.249781461 | M66: 6.4 | N66: 2.61724 | O66: 1.870718465
D67: =ODE_KA1!D98 -> 3.963670689 | E67: =ODE_KA1!A98 -> 6.5 | F67: =Ka1_+NORMINV(RAND(),0,reserr) -> 4.206217716 | M67: 6.5 | N67: 2.42462 | O67: =D67-N67 -> 1.539050689
D68: =ODE_KA1!D99 -> 3.53279452 | E68: =ODE_KA1!A99 -> 6.6 | F68: =Ka1_+NORMINV(RAND(),0,reserr) -> 2.093959332 | M68: 6.6 | N68: 2.24846 | O68: 1.28433452
D69: =ODE_KA1!D100 -> 3.174061382 | E69: =ODE_KA1!A100 -> 6.7 | F69: =Ka1_+NORMINV(RAND(),0,reserr) -> 3.394717634 | M69: 6.7 | N69: 2.08684 | O69: 1.087221382
D70: =ODE_KA1!D101 -> 2.871346691 | E70: =ODE_KA1!A101 -> 6.8 | F70: =Ka1_+NORMINV(RAND(),0,reserr) -> 4.052992826 | M70: 6.8 | N70: 1.93817 | O70: 0.9331766907
D71: =ODE_KA1!D102 -> 2.612474395 | E71: =ODE_KA1!A102 -> 6.9 | F71: =Ka1_+NORMINV(RAND(),0,reserr) -> 1.727678158 | M71: 6.9 | N71: 1.80113 | O71: 0.8113443954
D72: =ODE_KA1!D103 -> 2.388264227 | E72: =ODE_KA1!A103 -> 7 | F72: =Ka1_+NORMINV(RAND(),0,reserr) -> 0.882659117 | M72: 7 | N72: 1.67458 | O72: 0.7136842274
D73: =ODE_KA1!D104 -> 2.191789582 | E73: =ODE_KA1!A104 -> 7.1 | F73: =Ka1_+NORMINV(RAND(),0,reserr) -> 2.758067173 | M73: 7.1 | N73: 1.55755 | O73: 0.6342395822
D74: =ODE_KA1!D105 -> 2.017809067 | E74: =ODE_KA1!A105 -> 7.2 | F74: =Ka1_+NORMINV(RAND(),0,reserr) -> 1.912324913 | M74: 7.2 | N74: 1.44918 | O74: 0.5686290669
D75: =ODE_KA1!D106 -> 1.862336457 | E75: =ODE_KA1!A106 -> 7.3 | F75: =Ka1_+NORMINV(RAND(),0,reserr) -> 2.352513593 | M75: 7.3 | N75: 1.34875 | O75: 0.5135864569
D76: =ODE_KA1!D107 -> 1.722318373 | E76: =ODE_KA1!A107 -> 7.4 | F76: =Ka1_+NORMINV(RAND(),0,reserr) -> 2.648359541 | M76: 7.4 | N76: 1.25559 | O76: 0.4667283726
D77: =ODE_KA1!D108 -> 1.595394366 | E77: =ODE_KA1!A108 -> 7.5 | F77: =Ka1_+NORMINV(RAND(),0,reserr) -> 2.183573095 | M77: 7.5 | N77: 1.16911 | O77: 0.4262843661
D78: =ODE_KA1!D109 -> 1.479719261 | E78: =ODE_KA1!A109 -> 7.6 | F78: =Ka1_+NORMINV(RAND(),0,reserr) -> 2.831431506 | M78: 7.6 | N78: 1.08879 | O78: 0.390929261
D79: =ODE_KA1!D110 -> 1.373832067 | E79: =ODE_KA1!A110 -> 7.7 | F79: =Ka1_+NORMINV(RAND(),0,reserr) -> 3.1494632 | M79: 7.7 | N79: 1.01416 | O79: 0.3596720666
D80: =ODE_KA1!D111 -> 1.276559486 | E80: =ODE_KA1!A111 -> 7.8 | F80: =Ka1_+NORMINV(RAND(),0,reserr) -> 0.7212419723 | M80: 7.8 | N80: 0.944775 | O80: 0.3317844857
D81: =ODE_KA1!D112 -> 1.18694497 | E81: =ODE_KA1!A112 -> 7.9 | F81: =Ka1_+NORMINV(RAND(),0,reserr) -> 2.673272026 | M81: 7.9 | N81: 0.880252 | O81: 0.3066929697
D82: =ODE_KA1!D113 -> 1.104196562 | E82: =ODE_KA1!A113 -> 8 | F82: =Ka1_+NORMINV(RAND(),0,reserr) -> 0.2750177166 | M82: 8 | N82: 0.820228 | O82: 0.2839685616
D83: =ODE_KA1!D114 -> 1.027648509 | E83: =ODE_KA1!A114 -> 8.1 | F83: =Ka1_+NORMINV(RAND(),0,reserr) -> 0.5752028947 | M83: 8.1 | N83: 0.764376 | O83: 0.2632725091
D84: =ODE_KA1!D115 -> 0.9567329475 | E84: =ODE_KA1!A115 -> 8.2 | F84: =Ka1_+NORMINV(RAND(),0,reserr) -> 1.585004635 | M84: 8.2 | N84: 0.712394 | O84: 0.2443389475
D85: =ODE_KA1!D116 -> 0.8909589365 | E85: =ODE_KA1!A116 -> 8.3 | F85: =Ka1_+NORMINV(RAND(),0,reserr) -> 0.1106319104 | M85: 8.3 | N85: 0.664002 | O85: 0.2269569365
D86: =ODE_KA1!D117 -> 0.8298968614 | E86: =ODE_KA1!A117 -> 8.4 | F86: =Ka1_+NORMINV(RAND(),0,reserr) -> 1.817469645 | M86: 8.4 | N86: 0.618945 | O86: 0.2109518614
D87: =ODE_KA1!D118 -> 0.7731667508 | E87: =ODE_KA1!A118 -> 8.5 | F87: =Ka1_+NORMINV(RAND(),0,reserr) -> 0.8577770788 | M87: 8.5 | N87: 0.576985 | O87: 0.1961817508
D88: =ODE_KA1!D119 -> 0.720429454 | E88: =ODE_KA1!A119 -> 8.6 | F88: =Ka1_+NORMINV(RAND(),0,reserr) -> 1.165081174 | M88: 8.6 | N88: 0.537905 | O88: 0.182524454
D89: =ODE_KA1!D120 -> 0.6713799117 | E89: =ODE_KA1!A120 -> 8.7 | F89: =Ka1_+NORMINV(RAND(),0,reserr) -> -0.08946163553 | M89: 8.7 | N89: 0.501501 | O89: 0.1698789117
D90: =ODE_KA1!D121 -> 0.6257419645 | E90: =ODE_KA1!A121 -> 8.8 | F90: =Ka1_+NORMINV(RAND(),0,reserr) -> 1.5857061 | M90: 8.8 | N90: 0.467586 | O90: 0.1581559645
D91: =ODE_KA1!D122 -> 0.583264293 | E91: =ODE_KA1!A122 -> 8.9 | F91: =Ka1_+NORMINV(RAND(),0,reserr) -> 0.5741986781 | M91: 8.9 | N91: 0.435986 | O91: 0.147278293
D92: =ODE_KA1!D123 -> 0.5437171994 | E92: =ODE_KA1!A123 -> 9 | F92: =Ka1_+NORMINV(RAND(),0,reserr) -> 1.643189773 | M92: 9 | N92: 0.406541 | O92: 0.1371761994
D93: =ODE_KA1!D124 -> 0.5068900142 | E93: =ODE_KA1!A124 -> 9.1 | F93: =Ka1_+NORMINV(RAND(),0,reserr) -> 0.03526400439 | M93: 9.1 | N93: 0.379101 | O93: 0.1277890142
D94: =ODE_KA1!D125 -> 0.4725889759 | E94: =ODE_KA1!A125 -> 9.2 | F94: =Ka1_+NORMINV(RAND(),0,reserr) -> 1.82003141 | M94: 9.2 | N94: 0.353526 | O94: 0.1190629759
D95: =ODE_KA1!D126 -> 0.4406354694 | E95: =ODE_KA1!A126 -> 9.3 | F95: =Ka1_+NORMINV(RAND(),0,reserr) -> -0.8405619967 | M95: 9.3 | N95: 0.329689 | O95: 0.1109464694
D96: =ODE_KA1!D127 -> 0.41086454 | E96: =ODE_KA1!A127 -> 9.4 | F96: =Ka1_+NORMINV(RAND(),0,reserr) -> 0.6186889181 | M96: 9.4 | N96: 0.30747 | O96: 0.10339454
D97: =ODE_KA1!D128 -> 0.3831236228 | E97: =ODE_KA1!A128 -> 9.5 | F97: =Ka1_+NORMINV(RAND(),0,reserr) -> 1.578661244 | M97: 9.5 | N97: 0.286757 | O97: 0.09636662285
D98: =ODE_KA1!D129 -> 0.3572714424 | E98: =ODE_KA1!A129 -> 9.6 | F98: =Ka1_+NORMINV(RAND(),0,reserr) -> 0.0211312217 | M98: 9.6 | N98: 0.267448 | O98: 0.08982344244
D99: =ODE_KA1!D130 -> 0.3331770488 | E99: =ODE_KA1!A130 -> 9.7 | F99: =Ka1_+NORMINV(RAND(),0,reserr) -> 0.2174429756 | M99: 9.7 | N99: 0.249445 | O99: 0.08373204876
D100: =ODE_KA1!D131 -> 0.3107189644 | E100: =ODE_KA1!A131 -> 9.8 | F100: =Ka1_+NORMINV(RAND(),0,reserr) -> 0.33618529 | M100: 9.8 | N100: 0.23266 | O100: 0.07805896444
D101: =ODE_KA1!D132 -> 0.2897844241 | E101: =ODE_KA1!A132 -> 9.9 | F101: =Ka1_+NORMINV(RAND(),0,reserr) -> 0.03955224507 | M101: 9.9 | N101: 0.21701 | O101: 0.07277442414
D102: =ODE_KA1!D133 -> 0.2702686913 | E102: =ODE_KA1!A133 -> 10 | F102: =Ka1_+NORMINV(RAND(),0,reserr) -> 0.4655888873 | M102: 10 | N102: 0.202416 | O102: 0.06785269125
D103: =ODE_KA1!D134 -> 0.2520744405 | E103: =ODE_KA1!A134 -> 10.1 | F103: =Ka1_+NORMINV(RAND(),0,reserr) -> -0.7655515796 | M103: 10.1 | N103: 0.188808 | O103: 0.06326644045
D104: =ODE_KA1!D135 -> 0.235111197 | E104: =ODE_KA1!A135 -> 10.2 | F104: =Ka1_+NORMINV(RAND(),0,reserr) -> -0.664860773 | M104: 10.2 | N104: 0.176119 | O104: 0.05899219702
D105: =ODE_KA1!D136 -> 0.2192948257 | E105: =ODE_KA1!A136 -> 10.3 | F105: =Ka1_+NORMINV(RAND(),0,reserr) -> -1.263671441 | M105: 10.3 | N105: 0.164285 | O105: 0.05500982569
D106: =ODE_KA1!D137 -> 0.2045470631 | E106: =ODE_KA1!A137 -> 10.4 | F106: =Ka1_+NORMINV(RAND(),0,reserr) -> -0.6778961091 | M106: 10.4 | N106: 0.153248 | O106: 0.05129906312
D107: =ODE_KA1!D138 -> 0.1907950891 | E107: =ODE_KA1!A138 -> 10.5 | F107: =Ka1_+NORMINV(RAND(),0,reserr) -> -0.307061615 | M107: 10.5 | N107: 0.142956 | O107: 0.04783908911
D108: =ODE_KA1!D139 -> 0.1779711325 | E108: =ODE_KA1!A139 -> 10.6 | F108: =Ka1_+NORMINV(RAND(),0,reserr) -> -0.093472443 | M108: 10.6 | N108: 0.133356 | O108: 0.04461513246
D109: =ODE_KA1!D140 -> 0.166012108 | E109: =ODE_KA1!A140 -> 10.7 | F109: =Ka1_+NORMINV(RAND(),0,reserr) -> 0.5522535966 | M109: 10.7 | N109: 0.124403 | O109: 0.04160910801
D110: =ODE_KA1!D141 -> 0.1548592819 | E110: =ODE_KA1!A141 -> 10.8 | F110: =Ka1_+NORMINV(RAND(),0,reserr) -> -0.5738532681 | M110: 10.8 | N110: 0.116052 | O110: 0.03880728187
D111: =ODE_KA1!D142 -> 0.1444579624 | E111: =ODE_KA1!A142 -> 10.9 | F111: =Ka1_+NORMINV(RAND(),0,reserr) -> -1.518045899 | M111: 10.9 | N111: 0.108263 | O111: 0.03619496237
D112: =ODE_KA1!D143 -> 0.1347572142 | E112: =ODE_KA1!A143 -> 11 | F112: =Ka1_+NORMINV(RAND(),0,reserr) -> -0.4500771614 | M112: 11 | N112: 0.100998 | O112: 0.03375921419
D113: =ODE_KA1!D144 -> 0.125709594 | E113: =ODE_KA1!A144 -> 11.1 | F113: =Ka1_+NORMINV(RAND(),0,reserr) -> 1.595777989 | M113: 11.1 | N113: 0.0942214 | O113: 0.03148819402
D114: =ODE_KA1!D145 -> 0.1172709057 | E114: =ODE_KA1!A145 -> 11.2 | F114: =Ka1_+NORMINV(RAND(),0,reserr) -> -0.09259728034 | M114: 11.2 | N114: 0.0879003 | O114: 0.02937060567
D115: =ODE_KA1!D146 -> 0.1093999732 | E115: =ODE_KA1!A146 -> 11.3 | F115: =Ka1_+NORMINV(RAND(),0,reserr) -> -0.07062178826 | M115: 11.3 | N115: 0.0820039 | O115: 0.02739607316
D116: =ODE_KA1!D147 -> 0.1020584303 | E116: =ODE_KA1!A147 -> 11.4 | F116: =Ka1_+NORMINV(RAND(),0,reserr) -> -0.7180346352 | M116: 11.4 | N116: 0.0765038 | O116: 0.02555463033
D117: =ODE_KA1!D148 -> 0.09521052571 | E117: =ODE_KA1!A148 -> 11.5 | F117: =Ka1_+NORMINV(RAND(),0,reserr) -> -1.162513562 | M117: 11.5 | N117: 0.071373 | O117: 0.02383752571
D118: =ODE_KA1!D149 -> 0.08882294135 | E118: =ODE_KA1!A149 -> 11.6 | F118: =Ka1_+NORMINV(RAND(),0,reserr) -> -0.4142482383 | M118: 11.6 | N118: 0.0665869 | O118: 0.02223604135
D119: =ODE_KA1!D150 -> 0.08286462463 | E119: =ODE_KA1!A150 -> 11.7 | F119: =Ka1_+NORMINV(RAND(),0,reserr) -> -0.4723198819 | M119: 11.7 | N119: 0.0621221 | O119: 0.02074252463
D120: =ODE_KA1!D151 -> 0.07730663208 | E120: =ODE_KA1!A151 -> 11.8 | F120: =Ka1_+NORMINV(RAND(),0,reserr) -> -0.3744070574 | M120: 11.8 | N120: 0.057957 | O120: 0.01934963208
D121: =ODE_KA1!D152 -> 0.07212198419 | E121: =ODE_KA1!A152 -> 11.9 | F121: =Ka1_+NORMINV(RAND(),0,reserr) -> -0.2569039423 | M121: 11.9 | N121: 0.0540715 | O121: 0.01805048419
D122: =ODE_KA1!D153 -> 0.06728553052 | E122: =ODE_KA1!A153 -> 12 | F122: =Ka1_+NORMINV(RAND(),0,reserr) -> 0.2791642907 | M122: 12 | N122: 0.0504468 | O122: 0.01683873052

Sheet ODE_KA1
A1: AlgLib ODE Functions
A3: ODE(FuncName, Initial , XA , CoeffA, Eps, Step, MaxIts)
A4: Solve Ordinary Differential Equations using the AlgLib ODESolver routines
A5: Input:
B6: FuncName: Name of the VBA function to be solved
B7: Initial: Initial value of each variable, single row or column range
B8: XA: X values where output is required; single column range
B9: CoeffA: coefficients required for the ODE evaluation, single row range
B10: Eps: tolerance of solution; optional, default = 1E-6
B11: Step: initial step size; optional, default = 0 (step size determined by AlgLib routine)
B12: MaxIts: Maximum number of iterations; optional, default = 100
A14: Output:
B15: M x N array where M is the number of values in XA and N is the number of variables (rows or columns in Initial)
B16: Enter as an array function (select output range, press F2, edit formula if needed then press ctrl-shift enter)
A18: ODE Input:
B19: Function name | D19: Ethanol_KA1
D20: gut | E20: conc
B21: Initial amount | D21: =ka1mo!Dose*1000 -> 40000 | E21: 0
B22: Output time step | D22: 0.1 | E22: h
B23: Parameters | D23: Vmax | E23: Km | F23: V | G23: ka
B24: Values | D24: =ka1mo!Vmax -> 10 | E24: =ka1mo!Km -> 80 | F24: =ka1mo!V -> 35 | G24: =ka1mo!Ka -> 0.6931471806
B25: Units | D25: g/h | E25: mg/L | F25: L
B26: Tolerance | D26: 1e-09
B27: Function time step | D27: 0.01 | E27: h | F27: Doesn't seem to change anything
B28: Max. Iterations per step | D28: 10000
A30: Model: Defined as named function in VBA mODEFunctions
A32: Time | B32: Gut | C32: Central | D32: Conc
A33: 0 | B33: =ODE(D19,D21:E21,A33:A153,D24:G24,D26,D27,D28) -> 40000 | C33: 0 | D33: =C33/V -> 0
A34: =+A33+$D$22 -> 0.1 | B34: 37321.31966 | C34: 2391.877589 | D34: 68.33935969 | AD34: x = ut + at^2/2
A35: 0.2 | B35: 34822.02253 | C35: 4346.904827 | D35: 124.1972808 | AD35: a = k(1-x/r)
A36: 0.3 | B36: 32490.09585 | C36: 6029.780835 | D36: 172.2794524 | AD36: a = k(1-(ut + at^2/2)/r)
A37: 0.4 | B37: 30314.33133 | C37: 7498.384037 | D37: 214.2395439
A38: 0.5 | B38: 28284.27125 | C38: 8784.316018 | D38: 250.9804577
A39: 0.6 | B39: 26390.15822 | C39: 9908.869785 | D39: 283.1105653
A40: 0.7 | B40: 24622.88827 | C40: 10888.19679 | D40: 311.0913368
A41: 0.8 | B41: 22973.9671 | C41: 11735.44497 | D41: 335.2984278
A42: 0.9 | B42: 21435.46925 | C42: 12461.79525 | D42: 356.0512928
A43: 1 | B43: 20000 | C43: 13077.02516 | D43: 373.6292903
A44: 1.1 | B44: 18660.65983 | C44: 13589.84445 | D44: 388.2812699
A45: 1.2 | B45: 17411.01127 | C45: 14008.11011 | D45: 400.2317176
A46: 1.3 | B46: 16245.04793 | C46: 14338.97328 | D46: 409.6849508
A47: 1.4 | B47: 15157.16567 | C47: 14588.98494 | D47: 416.828141
A48: 1.5 | B48: 14142.13562 | C48: 14764.17578 | D48: 421.8335937
A49: 1.6 | B49: 13195.07911 | C49: 14870.11879 | D49: 424.8605368
A50: 1.7 | B50: 12311.44413 | C50: 14911.98004 | D50: 426.0565725
A51: 1.8 | B51: 11486.98355 | C51: 14894.56109 | D51: 425.5588882
A52: 1.9 | B52: 10717.73463 | C52: 14822.33516 | D52: 423.4952904
A53: 2 | B53: 10000 | C53: 14699.47872 | D53: 419.9851064
A54: 2.1 | B54: 9330.329915 | C54: 14529.89939 | D54: 415.1399826
A55: 2.2 | B55: 8705.505633 | C55: 14317.26109 | D55: 409.0646025
A56: 2.3 | B56: 8122.523964 | C56: 14065.00694 | D56: 401.8573411
A57: 2.4 | B57: 7578.582833 | C57: 13776.38035 | D57: 393.6108671
A58: 2.5 | B58: 7071.067812 | C58: 13454.44469 | D58: 384.4127053
A59: 2.6 | B59: 6597.539554 | C59: 13102.10179 | D59: 374.3457656
A60: 2.7 | B60: 6155.722067 | C60: 12722.10964 | D60: 363.488847
A61: 2.8 | B61: 5743.491775 | C61: 12317.09933 | D61: 351.9171236
A62: 2.9 | B62: 5358.867313 | C62: 11889.59161 | D62: 339.7026175
A63: 3 | B63: 5000 | C63: 11442.01327 | D63: 326.9146647
A64: 3.1 | B64: 4665.164958 | C64: 10976.71332 | D64: 313.6203805
A65: 3.2 | B65: 4352.752816 | C65: 10495.97949 | D65: =C65/V -> 299.8851282
A66: 3.3 | B66: 4061.261982 | C66: 10002.05494 | D66: 285.7729983
A67: 3.4 | B67: 3789.291416 | C67: 9497.155574 | D67: 271.3473021
A68: 3.5 | B68: 3535.533906 | C68: 8983.487958 | D68: 256.6710845
A69: 3.6 | B69: 3298.769777 | C69: 8463.268122 | D69: 241.8076606
A70: 3.7 | B70: 3077.861033 | C70: 7938.7412 | D70: 226.8211772
A71: 3.8 | B71: 2871.745887 | C71: 7412.201925 | D71: 211.7771978
A72: 3.9 | B72: 2679.433656 | C72: 6886.015721 | D72: 196.7433063
A73: 4 | B73: 2500 | C73: 6362.639906 | D73: 181.7897116
A74: 4.1 | B74: 2332.582479 | C74: 5844.643987 | D74: 166.9898282
A75: 4.2 | B75: 2176.376408 | C75: 5334.727433 | D75: 152.4207838
A76: 4.3 | B76: 2030.630991 | C76: 4835.732254 | D76: 138.1637787
A77: 4.4 | B77: 1894.645708 | C77: 4350.646467 | D77: 124.3041848
A78: 4.5 | B78: 1767.766953 | C78: 3882.592831 | D78: 110.9312238
A79: 4.6 | B79: 1649.384888 | C79: 3434.795454 | D79: 98.13701298
A80: 4.7 | B80: 1538.930517 | C80: 3010.515396 | D80: 86.01472561
A81: 4.8 | B81: 1435.872944 | C81: 2612.946284 | D81: 74.6556081
A82: 4.9 | B82: 1339.716828 | C82: 2245.063651 | D82: 64.14467575
A83: 5 | B83: 1250 | C83: 1909.42924 | D83: 54.55512114
A84: 5.1 | B84: 1166.291239 | C84: 1607.964743 | D84: 45.94184979
A85: 5.2 | B85: 1088.188204 | C85: 1341.727104 | D85: 38.33506012
A86: 5.3 | B86: 1015.315495 | C86: 1110.733279 | D86: 31.73523654
A87: 5.4 | B87: 947.3228541 | C87: 913.8864958 | D87: 26.11104274
A88: 5.5 | B88: 883.8834765 | C88: 749.0399332 | D88: 21.40114095
A89: 5.6 | B89: 824.6924442 | C89: 613.1982517 | D89: 17.51995005
A90: 5.7 | B90: 769.4652583 | C90: 502.8167782 | D90: 14.36619366
A91: 5.8 | B91: 717.9364719 | C91: 414.1321535 | D91: 11.83234724
A92: 5.9 | B92: 669.8584141 | C92: 343.458636 | D92: 9.813103887
A93: 6 | B93: 625 | C93: 287.406784 | D93: 8.2116224
A94: 6.1 | B94: 583.1456197 | C94: 243.0112212 | D94: 6.943177747
A95: 6.2 | B95: 544.0941021 | C95: 207.7779324 | D95: 5.936512353
A96: 6.3 | B96: 507.6577477 | C96: 179.6733108 | D96: 5.133523166
A97: 6.4 | B97: 473.661427 | C97: 157.0785463 | D97: =C97/V -> 4.487958465
A98: =+A97+$D$22 -> 6.5 | B98: 441.9417382 | C98: 138.7284741 | D98: 3.963670689
A99: 6.6 | B99: 412.3462221 | C99: 123.6478082 | D99: 3.53279452
A100: 6.7 | B100: 384.7326292 | C100: 111.0921484 | D100: 3.174061382
A101: 6.8 | B101: 358.9682359 | C101: 100.4971342 | D101: 2.871346691
A102: 6.9 | B102: 334.929207 | C102: 91.43660384 | D102: 2.612474395
A103: 7 | B103: 312.5 | C103: 83.58924796 | D103: 2.388264227
A104: 7.1 | B104: 291.5728099 | C104: 76.71263538 | D104: 2.191789582
A105: 7.2 | B105: 272.047051 | C105: 70.62331734 | D105: 2.017809067
A106: 7.3 | B106: 253.8288739 | C106: 65.18177599 | D106: 1.862336457
A107: 7.4 | B107: 236.8307135 | C107: 60.28114304 | D107: 1.722318373
A108: 7.5 | B108: 220.9708691 | C108: 55.83880282 | D108: 1.595394366
A109: 7.6 | B109: 206.1731111 | C109: 51.79017414 | D109: 1.479719261
A110: 7.7 | B110: 192.3663146 | C110: 48.08412233 | D110: 1.373832067
A111: 7.8 | B111: 179.484118 | C111: 44.679582 | D111: 1.276559486
A112: 7.9 | B112: 167.4646035 | C112: 41.54307394 | D112: 1.18694497
A113: 8 | B113: 156.25 | C113: 38.64687966 | D113: 1.104196562
A114: 8.1 | B114: 145.7864049 | C114: 35.96769782 | D114: 1.027648509
A115: 8.2 | B115: 136.0235255 | C115: 33.48565316 | D115: 0.9567329475
A116: 8.3 | B116: 126.9144369 | C116: 31.18356278 | D116: 0.8909589365
A117: 8.4 | B117: 118.4153568 | C117: 29.04639015 | D117: 0.8298968614
A118: 8.5 | B118: 110.4854346 | C118: 27.06083628 | D118: 0.7731667508
A119: 8.6 | B119: 103.0865555 | C119: 25.21503089 | D119: 0.720429454
A120: 8.7 | B120: 96.18315729 | C120: 23.49829691 | D120: 0.6713799117
A121: 8.8 | B121: 89.74205898 | C121: 21.90096876 | D121: 0.6257419645
A122: 8.9 | B122: 83.73230176 | C122: 20.41425026 | D122: 0.583264293
A123: 9 | B123: 78.125 | C123: 19.03010198 | D123: 0.5437171994
A124: 9.1 | B124: 72.89320246 | C124: 17.7411505 | D124: 0.5068900142
A125: 9.2 | B125: 68.01176276 | C125: 16.54061416 | D125: 0.4725889759
A126: 9.3 | B126: 63.45721847 | C126: 15.42224143 | D126: 0.4406354694
A127: 9.4 | B127: 59.20767838 | C127: 14.3802589 | D127: 0.41086454
A128: 9.5 | B128: 55.24271728 | C128: 13.4093268 | D128: 0.3831236228
A129: 9.6 | B129: 51.54327776 | C129: 12.50450049 | D129: =C129/V -> 0.3572714424
A130: 9.7 | B130: 48.09157865 | C130: 11.66119671 | D130: 0.3331770488
A131: 9.8 | B131: 44.87102949 | C131: 10.87516376 | D131: 0.3107189644
A132: 9.9 | B132: 41.86615088 | C132: 10.14245484 | D132: 0.2897844241
A133: 10 | B133: 39.0625 | C133: 9.459404194 | D133: 0.2702686913
A134: 10.1 | B134: 36.44660123 | C134: 8.822605416 | D134: 0.2520744405
A135: 10.2 | B135: 34.00588138 | C135: 8.228891896 | D135: 0.235111197
A136: 10.3 | B136: 31.72860923 | C136: 7.675318899 | D136: 0.2192948257
A137: 10.4 | B137: 29.60383919 | C137: 7.159147209 | D137: 0.2045470631
A138: 10.5 | B138: 27.62135864 | C138: 6.677828119 | D138: 0.1907950891
A139: 10.6 | B139: 25.77163888 | C139: 6.228989636 | D139: 0.1779711325
A140: 10.7 | B140: 24.04578932 | C140: 5.81042378 | D140: 0.166012108
A141: 10.8 | B141: 22.43551475 | C141: 5.420074866 | D141: 0.1548592819
A142: 10.9 | B142: 20.93307544 | C142: 5.056028683 | D142: 0.1444579624
A143: 11 | B143: 19.53125 | C143: 4.716502497 | D143: 0.1347572142
A144: 11.1 | B144: 18.22330062 | C144: 4.399835791 | D144: 0.125709594
A145: 11.2 | B145: 17.00294069 | C145: 4.104481699 | D145: 0.1172709057
A146: 11.3 | B146: 15.86430462 | C146: 3.82899906 | D146: 0.1093999732
A147: 11.4 | B147: 14.80191959 | C147: 3.572045062 | D147: 0.1020584303
A148: 11.5 | B148: 13.81067932 | C148: 3.3323684 | D148: 0.09521052571
A149: 11.6 | B149: 12.88581944 | C149: 3.108802947 | D149: 0.08882294135
A150: 11.7 | B150: 12.02289466 | C150: 2.900261862 | D150: 0.08286462463
A151: 11.8 | B151: 11.21775737 | C151: 2.705732123 | D151: 0.07730663208
A152: 11.9 | B152: 10.46653772 | C152: 2.524269447 | D152: 0.07212198419
A153: 12 | B153: 9.765625 | C153: 2.354993568 | D153: 0.06728553052

Sheet ODE_BO1
A1: AlgLib ODE Functions
A3: ODE(FuncName, Initial , XA , CoeffA, Eps, Step, MaxIts)
A4: Solve Ordinary Differential Equations using the AlgLib ODESolver routines
A5: Input:
B6: FuncName: Name of the VBA function to be solved
B7: Initial: Initial value of each variable, single row or column range
B8: XA: X values where output is required; single column range
B9: CoeffA: coefficients required for the ODE evaluation, single row range
B10: Eps: tolerance of solution; optional, default = 1E-6
B11: Step: initial step size; optional, default = 0 (step size determined by AlgLib routine)
B12: MaxIts: Maximum number of iterations; optional, default = 100
A14: Output:
B15: M x N array where M is the number of values in XA and N is the number of variables (rows or columns in Initial)
B16: Enter as an array function (select output range and press ctrl-shift enter)
A18: ODE Input:
B19: Function name | D19: Ethanol_BO1
B20: Initial amount | D20: =ka1mo!Dose*1000 -> 40000 | E20: mg
B21: Output time step | D21: 0.5 | E21: h
B22: Parameters | D22: Vmax | E22: Km | F22: V
B23: Values | D23: =ka1mo!Vmax -> 10 | E23: =ka1mo!Km -> 80 | F23: =ka1mo!V -> 35
B24: Units | D24: g/h | E24: mg/L | F24: L
B25: Tolerance | D25: 1e-09
B26: Function time step | D26: 0.01 | E26: h | F26: Doesn't seem to change anything
B27: Max. Iterations per step | D27: 1000
A29: Model: Defined as named function in VBA mODEFunctions
A31: Time | B31: Amount | C31: Conc
A32: 0 | B32: =ODE(D19,D20,A32:A52,D23:F23,D25,D26,D27) -> 40000 | C32: =B32/V -> 1142.857143
A33: =+A32+$D$21 -> 0.5 | B33: 35346.31859 | C33: 1009.894817 | AC33: x = ut + at^2/2
A34: 1 | B34: 30737.50818 | C34: 878.2145196 | AC34: a = k(1-x/r)
A35: 1.5 | B35: 26186.21023 | C35: 748.177435 | AC35: a = k(1-(ut + at^2/2)/r)
A36: 2 | B36: 21710.97267 | C36: 620.3135049
A37: 2.5 | B37: 17340.35967 | C37: 495.4388478
A38: 3 | B38: 13121.05214 | C38: 374.8872041
A39: 3.5 | B39: 9134.958317 | C39: 260.998809
A40: 4 | B40: 5536.863535 | C40: 158.196101
A41: 4.5 | B41: 2625.791656 | C41: 75.02261875
A42: 5 | B42: 834.71713 | C42: 23.84906086
A43: 5.5 | B43: 177.0212865 | C43: 5.057751042
A44: 6 | B44: 31.26847117 | C44: 0.8933848906
A45: 6.5 | B45: 5.291878822 | C45: 0.1511965378
A46: 7 | B46: 0.8887241508 | C46: 0.02539211859
A47: 7.5 | B47: 0.1490581911 | C47: 0.00425880546
A48: 8 | B48: 0.02499477451 | C48: 0.0007141364145
A49: 8.5 | B49: 0.004191085885 | C49: 0.000119745311
A50: 9 | B50: 0.0007027504067 | C50: 2.007858305e-05
A51: 9.5 | B51: 0.0001178351321 | C51: 3.366718059e-06
A52: 10 | B52: 1.97582067e-05 | C52: 5.645201916e-07
